bitfinex-derivatives/quotes_ETHF0:USTF0_20250411
["timestamp","ask_amount","ask_price","bid_price","bid_amount"]
[1744399342399,5.08567161,1571.2,1571.1,1.2736]
[1744399342697,0.00637161,1571.2,1571.1,4.4814]
[1744399342900,0.00637161,1571.2,1571.1,4.76515795]
[1744399346508,0.00637161,1571.2,1571.1,30.56772871]
[1744399346699,0.00637161,1571.2,1571.1,33.22522871]
[1744399346899,0.00637161,1571.2,1571.1,35.59562871]
[1744399348803,0.00637161,1571.2,1571.1,33.22522871]
[1744399350808,0.00637161,1571.2,1571.1,22.41151965]
[1744399351107,0.00637161,1571.2,1571.1,7.42265795]
[1744399351908,0.00637161,1571.2,1571.1,4.76515795]
[1744399352406,2.58197161,1571.2,1571.1,4.76515795]
[1744399352608,4.92727161,1571.2,1571.1,4.76515795]
[1744399354805,0.00637161,1571.2,1571.1,4.76515795]
[1744399355911,2.70947161,1571.2,1571.1,4.76515795]
[1744399357010,2.70947161,1571.2,1571.1,7.37045795]
[1744399357411,0.00637161,1571.2,1571.1,7.37045795]
[1744399366818,1.61e-06,1571.2,1571.1,7.37045795]
[1744399368217,2.3574,1571.8,1571.7,1.27311]
[1744399368422,5.00881039,1571.8,1571.7,9.13891]
[1744399368621,5.00881039,1571.8,1571.7,5.93111]
[1744399368821,5.00881039,1571.8,1571.7,6.21486795]
[1744399369320,5.00881039,1571.8,1571.7,9.42266795]
[1744399370125,5.00881039,1571.8,1571.7,9.90764945]
[1744399370416,5.00881039,1571.8,1571.7,9.42266795]
[1744399370624,10.00881039,1571.8,1571.7,9.42266795]
[1744399371121,11.28184039,1571.8,1571.7,9.42266795]
[1744399371320,10.00881039,1571.8,1571.7,9.42266795]
[1744399372922,10.00881039,1571.8,1571.7,4.76466795]
[1744399373123,11.28184039,1571.8,1571.7,0.28375795]
[1744399374920,11.28184039,1571.8,1571.7,1.55686795]
[1744399375120,6.28184039,1571.8,1571.7,1.55686795]
[1744399375626,5.00881039,1571.8,1571.7,1.55686795]
[1744399378927,6.28184039,1571.8,1571.7,1.55686795]
[1744399379525,11.28184039,1571.8,1571.7,0.28375795]
[1744399380421,11.28184039,1571.8,1571.7,1.55686795]
[1744399380618,6.28184039,1571.8,1571.7,1.55686795]
[1744399380819,5.00881039,1571.8,1571.7,1.55686795]
[1744399381020,5.00881039,1571.8,1571.7,4.10956795]
[1744399382325,3.4249,1571.9,1571.8,1.27303]
[1744399382523,3.4249,1571.9,1571.8,8.48273]
[1744399382924,6.0659,1571.9,1571.8,8.76648795]
[1744399383625,4.7929,1571.9,1571.8,8.76648795]
[1744399384230,6.06585,1571.9,1571.8,8.76648795]
[1744399384527,4.7929,1571.9,1571.8,8.76648795]
[1744399386429,2.1519,1571.9,1571.8,11.97428795]
[1744399386622,7.22887214,1572.0,1571.9,1.27295]
[1744399386934,8.50174214,1572.0,1571.9,4.16300795]
[1744399387119,11.09564214,1572.0,1571.9,2.89005795]
[1744399387325,11.09564214,1572.0,1571.9,0.28375795]
[1744399389133,11.09564214,1572.0,1571.9,1.55670795]
[1744399389134,6.11887,1572.0,1571.9,1.55670795]
[1744399390433,6.11887,1572.0,1571.9,0.28375795]
[1744399391127,6.11887,1572.0,1571.9,1.55670795]
[1744399392127,6.11887,1572.0,1571.9,0.28375795]
[1744399393030,11.09564214,1572.0,1571.9,0.28375795]
[1744399394437,14.30344214,1572.0,1571.9,0.28375795]
[1744399394632,19.30344214,1572.0,1571.9,0.28375795]
[1744399394827,1.27295,1571.9,1571.8,0.00956511]
[1744399395028,3.88925,1571.9,1571.8,0.00956511]
[1744399395229,8.88925,1571.9,1571.8,0.00956511]
[1744399395534,8.88925,1571.9,1571.8,5.11e-06]
[1744399395734,1.27328,1571.5,1571.4,9.9633626]
[1744399395929,4.48108,1571.5,1571.4,9.9633626]
[1744399396136,9.48108,1571.5,1571.4,9.9633626]
[1744399396338,1.27336,1571.4,1571.3,9.9633626]
[1744399396532,3.84876,1571.4,1571.3,9.95037299]
[1744399397635,8.84876,1571.4,1571.3,9.95037299]
[1744399399237,3.84876,1571.4,1571.3,9.95037299]
[1744399399437,3.84876,1571.4,1571.3,13.62771299]
[1744399399833,2.5754,1571.4,1571.3,13.62771299]
[1744399400132,1.27336,1571.4,1571.3,13.62764299]
[1744399401138,1.27336,1571.4,1571.3,12.35427299]
[1744399401336,13.74838055,1571.4,1571.3,3.67734]
[1744399402638,16.33648055,1571.4,1571.3,2.4039]
[1744399403041,1.27344,1571.3,1571.2,4.66156511]
[1744399403241,5.93404,1571.3,1571.2,0.00956511]
[1744399404631,14.14184,1571.3,1571.2,5.11e-06]
[1744399404836,9.14184,1571.3,1571.2,5.11e-06]
[1744399408845,16.62685233,1571.3,1571.2,5.11e-06]
[1744399410050,13.41905233,1571.3,1571.2,5.11e-06]
[1744399412239,5.93404,1571.3,1571.2,5.11e-06]
[1744399413944,1.27344,1571.3,1571.2,6.27352511]
[1744399414247,1.27344,1571.3,1571.2,13.00682511]
[1744399414447,6.25651114,1571.4,1571.3,1.27344]
[1744399414646,6.25651114,1571.4,1571.3,5.96394]
[1744399414844,6.25651114,1571.4,1571.3,10.96394]
[1744399415038,6.25651114,1571.4,1571.3,14.17174]
[1744399415648,6.25651114,1571.4,1571.3,5.96394]
[1744399416545,1.27341,1571.4,1571.3,5.96394]
[1744399421155,3.1832,1571.5,1571.3,5.96394]
[1744399421156,1.27334,1571.5,1571.4,1.27328]
[1744399421351,0.00956511,1571.6,1571.5,1.28626961]
[1744399421551,0.00956511,1571.6,1571.5,11.66796961]
[1744399421852,1.27314,1571.7,1571.6,1.2766145]
[1744399422053,1.27314,1571.7,1571.6,8.3107145]
[1744399422248,13.74112347,1571.9,1571.8,1.27303]
[1744399422751,12.46811347,1571.9,1571.8,8.43363]
[1744399422959,12.46468897,1571.9,1571.8,13.43363]
[1744399423955,0.00956,1572.0,1571.9,1.27295]
[1744399424152,0.00956,1572.0,1571.9,9.22335]
[1744399428366,0.00956,1572.0,1571.9,14.22335]
[1744399434765,0.00956,1572.0,1571.9,14.69536027]
[1744399437471,1e-05,1572.0,1571.9,14.69536027]
[1744399437868,2.1744,1572.5,1572.4,1.27255]
[1744399438068,2.5835,1572.7,1572.4,7.82734]
[1744399438269,2.5835,1572.7,1572.6,1.27238]
[1744399438675,2.5835,1572.7,1572.6,3.88208401]
[1744399440580,2.5835,1572.7,1572.6,0.01680401]
[1744399440776,3.8558,1572.7,1572.6,0.01680401]
[1744399441178,3.8558,1572.7,1572.6,1.28918401]
[1744399442780,2.5835,1572.7,1572.6,1.28918401]
[1744399443190,2.5835,1572.7,1572.6,3.82248401]
[1744399443377,4.4686,1572.8,1572.7,1.2723]
[1744399443682,8.36582,1572.8,1572.7,9.14190401]
[1744399443876,8.36582,1572.8,1572.7,5.93410401]
[1744399444277,7.0936,1572.8,1572.7,5.93410401]
[1744399444681,8.36582,1572.8,1572.7,5.93410401]
[1744399445776,7.0936,1572.8,1572.7,1.28910401]
[1744399445978,8.36582,1572.8,1572.7,1.28910401]
[1744399447788,8.36582,1572.8,1572.7,0.01680401]
[1744399448088,8.36582,1572.8,1572.7,1.28910401]
[1744399448480,7.0936,1572.8,1572.7,1.28910401]
[1744399448886,8.36582,1572.8,1572.7,1.28910401]
[1744399449088,8.36582,1572.8,1572.7,0.01680401]
[1744399449885,8.36582,1572.8,1572.7,1.28910401]
[1744399450582,8.36582,1572.8,1572.7,0.01680401]
[1744399453486,13.36582,1572.8,1572.7,0.01680401]
[1744399453682,8.36582,1572.8,1572.7,0.01680401]
[1744399457989,8.36582,1572.8,1572.7,1.28910401]
[1744399458790,8.36582,1572.8,1572.7,0.01680401]
[1744399458990,8.36582,1572.8,1572.7,1.28910401]
[1744399459897,8.36582,1572.8,1572.7,0.01680401]
[1744399462697,8.36582,1572.8,1572.7,1.28910401]
[1744399462899,8.36582,1572.8,1572.7,0.01680401]
[1744399464198,5.74082,1572.8,1572.7,4.49690401]
[1744399464599,2.2197,1572.8,1572.7,6.15880401]
[1744399464789,3.49192,1572.8,1572.7,0.01680401]
[1744399464990,5.20952,1572.8,1572.7,0.01680401]
[1744399466799,8.41732,1572.8,1572.7,0.01680401]
[1744399467004,13.41732,1572.8,1572.7,0.01680401]
[1744399467199,8.41732,1572.8,1572.7,0.01680401]
[1744399467601,13.41732,1572.8,1572.7,0.01680401]
[1744399468103,19.40132,1572.8,1572.7,4.01e-06]
[1744399468395,1.27238,1572.6,1572.5,0.00956511]
[1744399468797,3.18125,1572.5,1572.1,4.639]
[1744399468989,1.27271,1572.2,1572.1,4.639]
[1744399469193,1.27271,1572.2,1572.1,4.62601039]
[1744399469507,1.27271,1572.2,1572.0,16.6885617]
[1744399469508,1.27279,1572.1,1572.0,16.6885617]
[1744399469689,4.26589,1572.1,1572.0,17.9614317]
[1744399470294,4.26589,1572.1,1572.0,16.6885617]
[1744399470501,4.26589,1572.1,1572.0,1.6997]
[1744399470998,1.27287,1572.0,1571.9,4.64856511]
[1744399471295,2.97827,1572.0,1571.9,6.30906511]
[1744399472596,4.23717,1572.0,1571.9,6.30906511]
[1744399477108,4.23717,1572.0,1571.9,0.00956511]
[1744399477310,9.23717,1572.0,1571.9,0.00956511]
[1744399477906,12.44497,1572.0,1571.9,0.00956511]
[1744399478209,1.27319,1571.6,1571.5,1.6768]
[1744399478702,1.28999,1571.6,1571.5,1.6768]
[1744399479106,3.01289,1571.6,1571.5,1.6768]
[1744399480208,1.27328,1571.5,1571.4,18.20622681]
[1744399480511,2.87768,1571.5,1571.4,14.99842681]
[1744399480813,2.89448,1571.5,1571.4,14.99842681]
[1744399481910,2.89448,1571.5,1571.4,0.00956511]
[1744399482112,1.29008,1571.5,1571.4,0.00956511]
[1744399482304,1.29008,1571.5,1571.4,1.64156511]
[1744399482612,2.89448,1571.5,1571.4,0.00956511]
[1744399484407,1.27344,1571.3,1571.2,4.08444]
[1744399484603,1.29024,1571.3,1571.2,4.08444]
[1744399485003,2.92014,1571.3,1571.2,4.08444]
[1744399486514,2.92014,1571.3,1571.2,2.55946]
[1744399486810,1.27376,1570.9,1570.8,19.9641617]
[1744399487111,1.27392,1570.7,1570.6,7.8428]
[1744399487306,1.29072,1570.7,1570.6,6.4025]
[1744399487509,1.29072,1570.7,1570.6,7.6765]
[1744399487712,1.29072,1570.7,1570.6,10.8843]
[1744399488010,1.29072,1570.7,1570.6,7.6765]
[1744399488409,1.29072,1570.7,1570.6,10.8843]
[1744399488615,0.0168,1570.7,1570.6,15.8843]
[1744399488821,0.0168,1570.7,1570.6,10.8843]
[1744399489207,1.29072,1570.7,1570.6,10.8843]
[1744399489403,0.0168,1570.7,1570.6,10.8843]
[1744399489916,1.29072,1570.7,1570.6,10.8843]
[1744399490516,0.0168,1570.7,1570.6,15.8843]
[1744399494208,1.29072,1570.7,1570.6,15.8843]
[1744399494413,1.29072,1570.7,1570.6,10.8843]
[1744399497427,0.0168,1570.7,1570.6,10.8843]
[1744399499928,1.29072,1570.7,1570.6,10.8843]
[1744399501129,1.29072,1570.7,1570.6,9.6103]
[1744399501329,1.29072,1570.7,1570.6,6.4025]
[1744399501627,4.08422,1570.7,1570.6,6.4025]
[1744399502229,4.08422,1570.7,1570.6,1.7675]
[1744399502425,1.274,1570.6,1570.5,0.00956511]
[1744399502723,0.0168,1570.6,1570.5,1.28365511]
[1744399503028,0.0168,1570.6,1570.5,4.16535511]
[1744399503625,1.2908,1570.6,1570.5,0.00956511]
[1744399503826,2.9959,1570.6,1570.5,0.00956511]
[1744399504130,6.2037,1570.6,1570.5,0.00956511]
[1744399504331,6.2037,1570.6,1569.9,1.30424]
[1744399504332,1.27449,1570.0,1569.9,1.30424]
[1744399504524,1.27449,1570.0,1569.9,5.79721]
[1744399504831,1.29129,1570.0,1569.9,7.07178]
[1744399505627,1.29129,1570.0,1569.9,8.84608]
[1744399505831,1.29129,1570.0,1569.9,6.44201]
[1744399506034,2.96609,1570.0,1569.9,6.44201]
[1744399507635,2.96609,1570.0,1569.9,1.80401]
[1744399507835,7.96609,1570.0,1569.9,0.02971]
[1744399508029,1.27457,1569.9,1569.8,0.00956511]
[1744399508232,3.98587,1569.9,1569.8,0.00956511]
[1744399508934,1.2749,1569.5,1569.4,22.0208917]
[1744399509234,1.2749,1569.5,1569.4,23.7802917]
[1744399509434,0.0168,1569.5,1569.4,23.7802917]
[1744399510036,1.2917,1569.5,1569.4,23.7802917]
[1744399510238,0.0168,1569.5,1569.4,23.7802917]
[1744399512229,0.0168,1569.5,1569.4,8.79143]
[1744399513639,0.0168,1569.5,1569.4,13.79143]
[1744399516631,0.0168,1569.5,1569.4,8.79143]
[1744399519239,0.0168,1569.5,1569.4,13.79143]
[1744399520537,1e-05,1569.5,1569.4,13.79143]
[1744399520842,1.27451,1570.0,1569.9,1.27451]
[1744399521044,4.05831,1570.0,1569.9,7.61561]
[1744399521436,2.7838,1570.0,1569.9,7.61561]
[1744399521738,1.0937,1570.0,1569.9,7.61561]
[1744399523340,0.00956511,1570.1,1570.0,1.27449]
[1744399523534,0.00956511,1570.1,1570.0,4.08899]
[1744399524348,0.00956511,1570.1,1570.0,7.29679]
[1744399525030,1.28397511,1570.1,1570.0,2.92429]
[1744399525537,0.00956511,1570.1,1570.0,2.92429]
[1744399526141,0.00956511,1570.1,1570.0,6.13209]
[1744399526649,3.2078,1570.6,1570.0,6.13209]
[1744399526650,1.27388,1570.8,1570.7,1.27386]
[1744399527345,1.6428,1570.9,1570.6,1.6544]
[1744399527947,1.27387,1570.8,1570.7,1.27388]
[1744399528533,1.27392,1570.7,1570.6,0.00956511]
[1744399528746,3.96632,1570.7,1570.6,0.00956511]
[1744399529047,8.96632,1570.7,1570.6,0.00956511]
[1744399530643,7.6924,1570.7,1570.3,5.9092]
[1744399530848,1.27425,1570.3,1570.2,6.14277]
[1744399531049,1.27425,1570.3,1570.2,10.77777]
[1744399531746,1.27425,1570.3,1570.2,6.2957]
[1744399531935,1.27433,1570.2,1570.1,0.00637672]
[1744399533749,2.27543,1570.2,1570.1,0.00637672]
[1744399534454,2.27543,1570.2,1570.1,1.28078672]
[1744399534652,1.0011,1570.2,1570.1,2.93998672]
[1744399534853,1.0011,1570.2,1570.1,3.99288672]
[1744399535045,2.27543,1570.2,1570.1,1.28078672]
[1744399535251,3.91783,1570.2,1570.1,1.28078672]
[1744399535556,3.91783,1570.2,1570.1,2.90858672]
[1744399536045,3.91783,1570.2,1570.1,0.00637672]
[1744399536959,3.18607,1570.1,1569.8,4.635]
[1744399537255,1.27456,1570.0,1569.9,1.27453]
[1744399537455,2.91696,1570.0,1569.9,2.90233]
[1744399537655,2.91696,1570.0,1569.9,2.90237]
[1744399539153,1.6424,1570.0,1569.9,2.90237]
[1744399539349,1.6424,1570.0,1569.9,6.11017]
[1744399539558,2.91689,1570.0,1569.9,6.11017]
[1744399540157,1.6424,1570.0,1569.9,6.11017]
[1744399540358,2.32504511,1570.1,1569.9,4.8356]
[1744399540557,1.27457,1569.9,1569.8,4.635]
[1744399540858,1.27465,1569.8,1569.7,4.48248]
[1744399541053,3.94865,1569.8,1569.7,3.2078]
[1744399541556,3.94865,1569.8,1569.7,4.48254]
[1744399542255,3.94865,1569.8,1569.7,3.2078]
[1744399542455,2.674,1569.8,1569.4,96.14614]
[1744399542659,2.7621,1569.7,1569.5,1.6984]
[1744399542961,2.94232,1569.6,1569.5,2.9733]
[1744399543158,1.6675,1569.6,1569.5,2.9733]
[1744399543359,2.94232,1569.6,1569.5,2.9733]
[1744399543856,1.6675,1569.6,1569.5,2.9733]
[1744399544855,1.0946,1569.7,1569.6,1.27482]
[1744399545160,2.36934,1569.7,1569.6,2.93422]
[1744399545360,4.09064,1569.7,1569.6,2.93422]
[1744399546261,4.09064,1569.7,1569.6,1.27482]
[1744399546854,4.09064,1569.7,1569.6,2.93422]
[1744399547069,1.2749,1569.5,1569.4,0.0247]
[1744399547651,2.9502,1569.5,1569.4,0.0247]
[1744399547860,7.9502,1569.5,1569.4,0.0247]
[1744399549059,1.27506,1569.3,1569.2,9.89564621]
[1744399549763,7.95036,1569.3,1569.2,9.89564621]
[1744399550164,2.95036,1569.3,1569.2,9.89564621]
[1744399552157,2.95036,1569.3,1569.2,11.17078621]
[1744399552364,2.23384,1569.4,1569.3,1.27506]
[1744399552567,2.23384,1569.4,1569.3,3.00056]
[1744399553259,2.23384,1569.4,1569.3,1.7255]
[1744399553454,1.27506,1569.3,1569.2,9.89564621]
[1744399553659,1.27506,1569.3,1569.2,11.17078621]
[1744399553864,1.27506,1569.3,1569.2,12.83248621]
[1744399554460,1.27506,1569.3,1569.2,2.93684]
[1744399555662,2.23385,1569.4,1569.3,1.27506]
[1744399555866,2.23385,1569.4,1569.3,2.93676]
[1744399556969,2.23385,1569.4,1569.3,1.6617]
[1744399557168,3.84605,1569.4,1569.3,1.6617]
[1744399557371,3.84605,1569.4,1569.3,2.93676]
[1744399557570,2.23385,1569.4,1569.3,1.6617]
[1744399558168,2.23385,1569.4,1569.3,2.93676]
[1744399558866,1.27514,1569.2,1569.1,4.631]
[1744399559066,1.27514,1569.2,1569.1,6.3434]
[1744399559262,2.88734,1569.2,1569.1,7.61862]
[1744399560366,2.88734,1569.2,1569.1,6.3434]
[1744399560680,1.2753,1569.0,1568.9,10.10782]
[1744399562284,1.2753,1569.0,1568.9,11.82282]
[1744399562892,2.2748,1569.0,1568.9,11.82282]
[1744399563487,1.27547,1568.8,1568.7,5.9075]
[1744399563689,1.27547,1568.8,1568.7,9.1153]
[1744399563986,1.27547,1568.8,1568.7,5.9075]
[1744399564190,1.27545,1568.9,1568.8,1.27547]
[1744399564386,3.21595,1569.0,1568.9,1.27539]
[1744399564883,3.21595,1569.0,1568.9,2.99499]
[1744399566087,0.9995,1569.0,1568.9,2.99499]
[1744399566288,2.2748,1569.0,1568.9,2.99499]
[1744399566788,2.2748,1569.0,1568.9,3.92459]
[1744399566979,2.2748,1569.0,1568.9,1.7196]
[1744399567179,1.27547,1568.8,1568.7,10.04492]
[1744399567387,1.27547,1568.8,1568.7,11.65742]
[1744399568187,1.27547,1568.8,1568.7,1.6125]
[1744399568390,1.27563,1568.6,1568.5,6.87571]
[1744399568987,1.27563,1568.6,1568.5,5.6]
[1744399569183,2.24613,1568.6,1568.5,5.6]
[1744399569489,2.24613,1568.6,1568.5,6.87571]
[1744399569782,2.24613,1568.6,1568.5,2.24271]
[1744399569985,2.24613,1568.6,1568.4,3.04325]
[1744399569986,1.27571,1568.5,1568.4,3.04325]
[1744399570485,1.27571,1568.5,1568.4,1.7675]
[1744399570883,2.98341,1568.5,1568.4,3.04329]
[1744399571190,2.98341,1568.5,1568.4,1.7675]
[1744399571486,1.27579,1568.4,1568.3,1.27581]
[1744399571789,1.27579,1568.4,1568.3,3.04491]
[1744399572393,1.28535511,1568.5,1568.4,1.27579]
[1744399572690,2.93095511,1568.5,1568.4,1.7691]
[1744399574290,2.93095511,1568.5,1568.4,3.04489]
[1744399575988,0.00956511,1568.5,1568.4,3.04489]
[1744399576888,1.28527511,1568.5,1568.4,3.04489]
[1744399578793,1.28527511,1568.5,1568.4,1.7691]
[1744399578990,2.95857511,1568.5,1568.4,1.7691]
[1744399579787,2.95857511,1568.5,1568.4,3.04489]
[1744399579788,0.00956511,1568.5,1568.4,3.04489]
[1744399581594,0.00956511,1568.5,1568.4,3.12089]
[1744399582191,1.28527511,1568.5,1568.4,3.04489]
[1744399582397,2.98717511,1568.5,1568.4,3.04489]
[1744399582581,2.98717511,1568.5,1568.4,1.7691]
[1744399582784,2.98717511,1568.5,1568.2,5.6]
[1744399582785,8.10864511,1568.5,1568.2,5.6]
[1744399582988,1.27587,1568.3,1568.2,8.51709]
[1744399583191,1.27587,1568.3,1568.2,7.55009]
[1744399583394,2.97777,1568.3,1568.2,7.55009]
[1744399584291,1.7019,1568.3,1568.2,7.55009]
[1744399584490,0.00956511,1568.5,1568.4,1.27579]
[1744399584695,1.28527511,1568.5,1568.4,1.27579]
[1744399584895,1.71186511,1568.5,1568.4,2.93669]
[1744399585195,0.00956511,1568.5,1568.4,2.93669]
[1744399585594,1.28527511,1568.5,1568.4,2.93669]
[1744399585791,2.98757511,1568.5,1568.4,2.93669]
[1744399587196,1.71186511,1568.5,1568.4,2.93669]
[1744399587499,0.00956511,1568.5,1568.4,2.93669]
[1744399587901,1.28527511,1568.5,1568.4,2.93669]
[1744399588592,0.00956511,1568.5,1568.4,2.93669]
[1744399589305,0.00956511,1568.5,1568.4,3.01329]
[1744399593302,0.00956511,1568.5,1568.4,2.93669]
[1744399593498,1.28527511,1568.5,1568.4,1.6609]
[1744399593807,2.89487511,1568.5,1568.4,2.93669]
[1744399594708,1.61916511,1568.5,1568.4,2.93669]
[1744399595002,0.00956511,1568.5,1568.4,2.93669]
[1744399596699,0.00956511,1568.5,1568.4,3.01309]
[1744399597303,0.00956511,1568.5,1568.4,2.93669]
[1744399597504,1.28527511,1568.5,1568.4,2.93669]
[1744399597808,0.00956511,1568.5,1568.4,2.93669]
[1744399598704,0.96096511,1568.5,1568.4,2.93669]
[1744399599302,0.00956511,1568.5,1568.4,3.01279]
[1744399602901,0.00956511,1568.5,1568.4,8.01279]
[1744399604702,2.22688,1568.8,1568.7,1.27555]
[1744399604703,0.9514,1568.8,1568.7,1.27555]
[1744399604902,0.9514,1568.8,1568.7,9.11235]
[1744399605203,0.9514,1568.8,1568.7,11.76505]
[1744399606802,2.22687,1568.8,1568.7,11.76505]
[1744399607002,0.9514,1568.8,1568.7,11.76505]
[1744399607902,0.9514,1568.8,1568.7,7.13605]
[1744399608200,1.27555,1568.7,1568.6,1.28512511]
[1744399608401,1.27555,1568.7,1568.6,2.92232511]
[1744399609306,2.95065,1568.7,1568.6,2.92232511]
[1744399609904,2.95065,1568.7,1568.6,1.28512511]
[1744399610104,2.95065,1568.7,1568.6,2.92232511]
[1744399611902,1.6751,1568.7,1568.6,2.92232511]
[1744399612111,2.22691,1568.8,1568.7,1.27555]
[1744399612295,0.9514,1568.8,1568.7,7.66525]
[1744399613807,0.9514,1568.8,1568.7,8.61095]
[1744399615309,2.22687,1568.8,1568.7,8.61095]
[1744399615603,2.22687,1568.8,1568.7,6.3897]
[1744399615804,3.84197,1568.8,1568.7,7.66525]
[1744399619009,2.5665,1568.8,1568.7,7.66525]
[1744399619215,0.9514,1568.8,1568.7,7.66525]
[1744399619509,0.9514,1568.8,1568.7,8.57355]
[1744399620608,0.00956511,1568.9,1568.8,1.27547]
[1744399620813,0.00956511,1568.9,1568.8,6.11107]
[1744399621011,0.00956511,1568.9,1568.8,11.11107]
[1744399623216,1.28495511,1568.9,1568.8,6.11107]
[1744399623510,0.00956511,1568.9,1568.8,6.11107]
[1744399627819,0.00956511,1568.9,1568.8,11.11107]
[1744399629518,0.886,1569.3,1569.2,1.27514]
[1744399629714,12.45996269,1569.4,1569.3,1.27506]
[1744399629912,12.45996269,1569.4,1569.3,2.13216]
[1744399630114,12.45996269,1569.4,1569.3,3.87866]
[1744399630513,12.45996269,1569.4,1569.3,8.87866]
[1744399631313,12.45996269,1569.4,1569.3,3.87866]
[1744399631518,4.97503417,1569.4,1569.3,3.87866]
[1744399631720,0.00956511,1569.5,1569.4,1.27498]
[1744399632016,0.00956511,1569.5,1569.4,3.02148]
[1744399632221,0.00956511,1569.5,1569.4,6.22928]
[1744399633023,0.00956511,1569.5,1569.4,11.22928]
[1744399634109,0.00956511,1569.5,1569.4,11.74865362]
[1744399634314,0.00956511,1569.5,1569.4,6.74865362]
[1744399635019,0.00956511,1569.5,1569.4,27.54088666]
[1744399637316,0.00956511,1569.5,1569.4,27.02151304]
[1744399637821,1.62746511,1569.5,1569.4,27.02151304]
[1744399638321,1.7413,1569.7,1569.6,1.27482]
[1744399638322,0.886,1569.7,1569.6,1.27482]
[1744399638515,8.16046417,1570.4,1570.0,1.27442]
[1744399638516,1.7777,1570.1,1570.0,1.27442]
[1744399638718,1.7777,1570.1,1570.0,9.09922]
[1744399642128,0.8744,1570.1,1570.0,9.09922]
[1744399643421,0.00956511,1570.2,1570.1,1.27441]
[1744399643627,0.00956511,1570.2,1570.1,3.05251]
[1744399643829,1.65616511,1570.2,1570.1,3.05251]
[1744399646233,1.65616511,1570.2,1570.1,1.27441]
[1744399648034,7.93049511,1570.2,1570.1,1.27441]
[1744399648225,6.65616511,1570.2,1570.1,1.27441]
[1744399648426,1.65616511,1570.2,1570.1,1.27441]
[1744399659842,0.00956511,1570.2,1570.1,1.27441]
[1744399660035,0.00956511,1570.2,1570.1,2.99391]
[1744399663947,1.68866511,1570.2,1570.1,2.99391]
[1744399664353,2.96299511,1570.2,1570.1,2.99391]
[1744399664648,1.68866511,1570.2,1570.1,2.99391]
[1744399664849,2.96299511,1570.2,1570.1,1.27441]
[1744399665049,1.27441,1570.1,1570.0,9.09923]
[1744399665340,3.87271,1570.1,1570.0,9.09923]
[1744399665541,3.87271,1570.1,1570.0,5.89143]
[1744399666148,3.87271,1570.1,1570.0,1.27443]
[1744399666351,8.87277,1570.1,1570.0,1.27449]
[1744399666746,2.5983,1570.1,1570.0,1.27449]
[1744399667049,3.87271,1570.1,1570.0,3.01129]
[1744399667349,3.87271,1570.1,1570.0,1.27449]
[1744399669054,1.27449,1570.0,1569.9,3.02089511]
[1744399669347,2.6055,1570.0,1569.9,1.28413511]
[1744399669750,2.6055,1570.0,1569.9,2.99103511]
[1744399670349,0.9192,1570.1,1570.0,1.27449]
[1744399670546,1.8225,1570.1,1570.0,2.98139]
[1744399670857,3.09691,1570.1,1570.0,2.98139]
[1744399671048,4.79911,1570.1,1570.0,2.98139]
[1744399671843,4.79911,1570.1,1570.0,1.27449]
[1744399672147,1.27449,1570.0,1569.9,2.99098511]
[1744399672349,3.00669,1570.0,1569.9,0.00956511]
[1744399672946,11.21449,1570.0,1569.9,0.00956511]
[1744399673146,1.27474,1569.7,1569.6,5.88576]
[1744399673751,1.27474,1569.7,1569.6,5.88582]
[1744399673954,3.91581,1569.8,1569.7,1.27474]
[1744399674158,1.27474,1569.7,1569.6,7.56018]
[1744399674460,3.00694,1569.7,1569.6,4.611]
[1744399675044,3.00694,1569.7,1569.6,5.88582]
[1744399676051,1.27482,1569.6,1569.5,1.64396511]
[1744399676256,3.85892,1569.6,1569.5,0.00956511]
[1744399676456,1.2749,1569.5,1569.4,14.50664621]
[1744399676655,3.8627,1569.5,1569.4,9.89564621]
[1744399677052,3.8627,1569.5,1569.4,11.17062621]
[1744399677558,3.8627,1569.5,1569.4,2.90938]
[1744399679261,3.8627,1569.5,1569.4,1.6344]
[1744399679455,3.8627,1569.5,1569.4,2.90938]
[1744399680460,1.27498,1569.4,1569.3,1.28457511]
[1744399680963,0.9095,1569.5,1569.3,3.02917511]
[1744399681260,3.83785,1569.5,1569.4,1.27498]
[1744399681455,3.83785,1569.5,1569.4,3.04648]
[1744399682255,1.27498,1569.4,1569.3,0.00956511]
[1744399682456,2.92838,1569.4,1569.3,0.00956511]
[1744399683661,6.13618,1569.4,1569.3,0.00956511]
[1744399683854,1.2753,1569.0,1568.9,15.78296621]
[1744399684160,1.2753,1569.0,1568.9,17.55446621]
[1744399685357,1.2753,1569.0,1568.9,9.89564621]
[1744399686463,1.27543,1568.9,1568.8,1.2754]
[1744399686862,1.27536,1569.0,1568.9,1.27534]
[1744399687163,2.12146,1569.0,1568.9,1.27534]
[1744399687363,0.8461,1569.0,1568.9,1.27534]
[1744399687663,2.1214,1569.0,1568.9,3.01864]
[1744399694269,0.8461,1569.0,1568.9,3.01864]
[1744399695769,0.00956511,1569.1,1569.0,1.2753]
[1744399695976,0.00956511,1569.1,1569.0,3.0483]
[1744399696169,1.28478511,1569.1,1569.0,3.0483]
[1744399696369,0.00956511,1569.1,1569.0,3.0483]
[1744399696668,1.28478511,1569.1,1569.0,3.0483]
[1744399699976,0.00956511,1569.1,1569.0,3.0483]
[1744399700275,1.28478511,1569.1,1569.0,3.0483]
[1744399700477,0.00956511,1569.1,1569.0,3.0483]
[1744399700674,1.28478511,1569.1,1569.0,3.0483]
[1744399700881,0.00956511,1569.1,1569.0,3.0483]
[1744399701877,1.28478511,1569.1,1569.0,3.0483]
[1744399702376,0.00956511,1569.1,1569.0,3.0483]
[1744399702878,1.28478511,1569.1,1569.0,3.0483]
[1744399703381,1.28478511,1569.1,1569.0,1.773]
[1744399703577,1.2753,1569.0,1568.9,5.88939]
[1744399703777,2.1862,1569.0,1568.9,7.61849]
[1744399704077,1.2753,1569.0,1568.9,7.61849]
[1744399704280,1.28485511,1569.1,1569.0,1.2753]